[Event "III Menorca Open-A 2024"]
[Site "Ciutadella Menorca"]
[Date "2024.04.07"]
[Round "9.20"]
[White "Karthik Venkataraman"]
[Black "Wafa, Hamed"]
[Result "1-0"]
[ECO "E12"]
[WhiteElo "2609"]
[BlackElo "2374"]
[Annotator "TA"]
[PlyCount "79"]
[EventDate "2024.04.02"]
[EventType "swiss"]
[EventCountry "ESP"]
[SourceTitle "playchess.com"]
[Source "ChessBase"]
[SourceQuality "1"]
[TimeControl "5400+30"]

{[%evp 21,79,0,35,7,50,45,37,0,27,17,25,0,66,58,67,73,108,97,103,104,118,117,125,132,108,112,122,113,133,106,88,90,83,38,231,209,235,236,320,325,318,329,326,314,296,323,300,304,385,385,357,289,290,290,1219,1178,1116,1096,2063,2029]} 1. d4 {[%emt 0:00:42]} Nf6 {[%emt 0:00:25]} 2. c4 {[%emt 0:00:15]} e6 {[%emt 0:00:14]} 3. Nf3 {[%emt 0:00:06]} b6 {[%emt 0:01:07]} 4. a3 {[%emt 0:00:34]} Bb7 {[%emt 0:00:17]} 5. Nc3 {[%emt 0:00:21]} d5 {[%emt 0:00:28]} 6. cxd5 {[%emt 0:00:19]} Nxd5 {[%emt 0:00:24]} 7. Bd2 {[%emt 0:00:23]} Nd7 {[%emt 0:02:12]} 8. Qc2 {[%emt 0:00:24]} Be7 {[%emt 0:03:48]} 9. e4 {[%emt 0:00:13]} Nxc3 {[%emt 0:00:09]} 10. Bxc3 {[%emt 0:00:06]} O-O {[%emt 0:00:37]} 11. Rd1 {[%emt 0:02:01]} c5 {[%emt 0:12:50]} 12. dxc5 {[%emt 0:02:19]} Qc8 {[%emt 0:00:10]} 13. cxb6 {[%emt 0:00:46]} axb6 {[%emt 0:00:08]} 14. Nd2 {[%emt 0:10:17] White is slightly better.} Bf6 {[%emt 0:02:39]} 15. Bc4 {[%emt 0:23:00]} Ne5 {[%emt 0:12:04]} 16. Be2 {[%emt 0:00:25]} Ba6 {[%emt 0:02:01]} ({Black should try} 16... Ng6 $11) 17. Nb1 $14 {[%emt 0:01:04]} Bb7 {[%emt 0:04:00]} 18. O-O {[%emt 0:01:02]} Qc6 {[%emt 0:00:22]} 19. f3 {[%emt 0:04:31]} Ng6 {[%emt 0:02:48]} 20. g3 {[%emt 0:00:23] Inhibits Nf4.} h5 {[%emt 0:03:58]} 21. Qd2 {[%emt 0:00:52]} Rad8 {[%emt 0:02:09]} 22. Qe3 {[%emt 0:00:20]} Be7 {[%emt 0:00:26] [#] And now ...Bc5 would win.} 23. Bb4 {[%emt 0:02:36]} Bxb4 {[%emt 0:02:31]} 24. axb4 {[%emt 0:00:03]} Qc2 {[%emt 0:04:40]} 25. Rxd8 {[%emt 0:01:56]} (25. Qxb6 Rxd1 26. Bxd1 Qxb1 27. Qxb7 Rd8 $17 (27... Qxb2 28. f4 $11)) 25... Rxd8 {[%emt 0:00:08]} 26. Qxb6 {[%emt 0:00:11]} Rd7 {[%emt 0:00:52]} 27. Bb5 {[%emt 0:01:59]} Re7 {[%emt 0:04:55] [#] A mistake that costs the game.} (27... Ne5 $1 $14 28. Bxd7 Nxf3+ 29. Rxf3 Qxb1+ 30. Kg2 (30. Rf1 Qxe4 31. Kf2 Qc2+ 32. Ke3 Qb3+ 33. Kd2 Qxb2+ 34. Kd3 Qb3+ 35. Kd2 Qb2+ 36. Kd3 Qb3+ 37. Kd2 Qb2+ $11) 30... Qxe4) 28. Qd4 {[%emt 0:00:46]} e5 {[%emt 0:01:18]} 29. Qd2 {[%emt 0:02:26]} Rc7 {[%emt 0:00:29]} 30. Qd8+ {[%emt 0:01:23]} Nf8 {[%emt 0:01:06]} 31. Na3 {[%emt 0:02:46]} Rc8 {[%emt 0:01:50]} 32. Qe7 {[%emt 0:05:51]} Qc7 {[%emt 0:02:40]} 33. Qxc7 {[%emt 0:00:07]} Rxc7 {[%emt 0:00:01]} 34. Nc4 {[%emt 0:00:06]} f6 {[%emt 0:00:34]} 35. Nd6 {[%emt 0:00:19]} Bc8 {[%emt 0:00:36]} 36. Nxc8 {[%emt 0:00:45]} Rxc8 {[%emt 0:00:02]} 37. b3 {[%emt 0:00:06]} Rc3 $2 {[%emt 0:01:11]} (37... Kf7 38. Ra1 Ne6) 38. Bc4+ $18 {[%emt 0:00:08] White is clearly winning.} Kh7 {[%emt 0:00:04]} 39. Rd1 {[%emt 0:00:14]} Rxf3 {[%emt 0:00:49]} 40. b5 {[%emt 0:00:06] Weighted Error Value: White=0.09 (flawless) /Black=0.29 (precise) .  Loses game:     	---       	Black=1      Mistake:       	---       	Black=2      Inaccurate:     	White=2     	Black=4      OK:         	White=12    	Black=8      Best:        	White=3     	---} 1-0

[Event "III Menorca Open-A 2024"]
[Site "Ciutadella Menorca"]
[Date "2024.04.07"]
[Round "9.21"]
[White "Klekowski, Maciej"]
[Black "Oro, Faustino"]
[Result "1/2-1/2"]
[ECO "A21"]
[WhiteElo "2483"]
[BlackElo "2330"]
[Annotator "TA"]
[PlyCount "20"]
[EventDate "2024.04.02"]
[EventType "swiss"]
[EventCountry "ESP"]
[SourceTitle "playchess.com"]
[Source "ChessBase"]
[SourceQuality "1"]
[TimeControl "5400+30"]

{[%evp 9,20,8,13,-17,-6,-16,-1,-8,12,21,10,-7,23]} 1. c4 {[%emt 0:00:07]} e5 {[%emt 0:00:10]} 2. Nc3 {[%emt 0:00:09]} d6 {[%emt 0:00:05]} 3. g3 {[%emt 0:05:15]} f5 {[%emt 0:00:11]} 4. d4 {[%emt 0:00:50]} Be7 {[%emt 0:00:13]} 5. Bg2 {[%emt 0:04:32]} Nf6 {[%emt 0:00:21] The position is equal.} 6. Bg5 {[%emt 0:02:36]} O-O {[%emt 0:06:16]} 7. e3 {[%emt 0:01:11][%cal Oc4c5]} c6 {[%emt 0:07:46]} 8. Nge2 {[%emt 0:00:18]} h6 {[%emt 0:03:49]} 9. Bxf6 {[%emt 0:01:34]} Bxf6 {[%emt 0:00:09]} 10. Qd2 {[%emt 0:16:05]} Qe7 {[%emt 0:09:23] Not much happened in this game.   Weighted Error Value: White=0.12 (very precise) /Black=0.12 (very precise) .  Inaccurate:     	---       	Black=1      OK:         	White=1     	---} 1/2-1/2

[Event "III Menorca Open-A 2024"]
[Site "Ciutadella Menorca"]
[Date "2024.04.07"]
[Round "9.22"]
[White "Cramling Bellon, Anna"]
[Black "Garmendia Vega, Gabriel"]
[Result "0-1"]
[ECO "D32"]
[WhiteElo "2115"]
[BlackElo "1961"]
[Annotator "RC"]
[PlyCount "96"]
[EventDate "2024.04.02"]
[EventType "swiss"]
[EventCountry "ESP"]
[SourceTitle "playchess.com"]
[Source "ChessBase"]
[SourceQuality "1"]
[TimeControl "5400+30"]

1. d4 {[%emt 0:04:53]} d5 {[%emt 0:00:05]} 2. c4 {[%emt 0:00:30]} e6 {[%emt 0:00:08]} 3. Nc3 {[%emt 0:00:16]} c5 {[%emt 0:00:09]} 4. cxd5 {[%emt 0:08:25]} exd5 {[%emt 0:00:09]} 5. Nf3 {[%emt 0:00:53]} Nf6 {[%emt 0:00:11]} 6. Bg5 {[%emt 0:03:34]} Be6 {[%emt 0:01:28]} 7. e3 {[%emt 0:00:26]} c4 {[%emt 0:00:10]} 8. Be2 {[%emt 0:02:26]} Bb4 {[%emt 0:00:14]} 9. O-O {[%emt 0:04:09]} Nbd7 {[%emt 0:00:06]} 10. Nd2 {[%emt 0:11:50]} Qa5 {[%emt 0:05:35]} 11. Qc2 {[%emt 0:04:04]} O-O {[%emt 0:03:17]} 12. f4 {[%emt 0:08:44]} Bg4 {[%emt 0:07:02]} 13. Bxg4 {[%emt 0:04:51]} Nxg4 {[%emt 0:00:30]} 14. f5 {[%emt 0:03:45]} Rfe8 {[%emt 0:05:49]} 15. Rf3 {[%emt 0:04:44]} Bxc3 {[%emt 0:12:04]} 16. bxc3 {[%emt 0:00:16]} Ngf6 {[%emt 0:00:20]} 17. Rb1 {[%emt 0:02:39]} b5 {[%emt 0:04:04]} 18. Rb4 {[%emt 0:01:15]} a6 {[%emt 0:11:50]} 19. a4 {[%emt 0:02:01]} bxa4 {[%emt 0:01:18]} 20. Rxa4 {[%emt 0:00:09]} Qb5 {[%emt 0:00:51]} 21. Rf1 {[%emt 0:06:40]} h6 {[%emt 0:09:33]} 22. Bf4 {[%emt 0:01:41]} Nh5 {[%emt 0:02:34]} 23. e4 {[%emt 0:05:35]} Nxf4 {[%emt 0:05:36]} 24. Rxf4 {[%emt 0:00:12]} dxe4 {[%emt 0:00:11]} 25. Nxe4 {[%emt 0:02:58]} Qb3 {[%emt 0:06:10]} 26. Ra2 {[%emt 0:02:33]} Qxc2 {[%emt 0:02:42]} 27. Rxc2 {[%emt 0:00:02]} Nb6 {[%emt 0:00:12]} 28. Nc5 {[%emt 0:04:31]} Nd5 {[%emt 0:01:11]} 29. Rf3 {[%emt 0:04:07]} a5 {[%emt 0:02:59]} 30. Ra2 {[%emt 0:00:06]} Re1+ {[%emt 0:00:35]} 31. Rf1 {[%emt 0:04:38]} Rxf1+ {[%emt 0:00:20]} 32. Kxf1 {[%emt 0:00:03]} Nxc3 {[%emt 0:00:06]} 33. Rc2 {[%emt 0:00:24]} Nd5 {[%emt 0:00:06]} 34. Ke2 {[%emt 0:01:46]} Re8+ {[%emt 0:04:56]} 35. Kd2 {[%emt 0:02:06]} c3+ {[%emt 0:00:16]} 36. Rxc3 {[%emt 0:00:42]} Nxc3 {[%emt 0:00:10]} 37. Kxc3 {[%emt 0:00:02]} Re2 {[%emt 0:01:17]} 38. d5 {[%emt 0:00:54]} Kf8 {[%emt 0:00:15]} 39. Kc4 {[%emt 0:00:39]} Ke7 {[%emt 0:01:32]} 40. g4 {[%emt 0:00:02]} Rxh2 {[%emt 0:00:51]} 41. Ne4 {[%emt 0:00:47]} Rc2+ {[%emt 0:02:45]} 42. Kd4 {[%emt 0:00:29]} a4 {[%emt 0:00:27]} 43. d6+ {[%emt 0:00:40]} Kd7 {[%emt 0:00:12]} 44. f6 {[%emt 0:00:28]} gxf6 {[%emt 0:00:26]} 45. Kd3 {[%emt 0:00:12]} Rc6 {[%emt 0:00:48]} 46. Nxf6+ {[%emt 0:00:28]} Kxd6 {[%emt 0:00:10]} 47. Ne4+ {[%emt 0:00:22]} Ke5 {[%emt 0:00:18]} 48. Nd2 {[%emt 0:00:26]} Rd6+ {[%emt 0:12:32]} 0-1

[Event "III Menorca Open-A 2024"]
[Site "Ciutadella Menorca"]
[Date "2024.04.07"]
[Round "9.23"]
[White "Prado, Alexandra"]
[Black "Huguet, Sergio"]
[Result "1/2-1/2"]
[ECO "B01"]
[WhiteElo "1877"]
[BlackElo "1963"]
[Annotator "NA RC"]
[PlyCount "71"]
[EventDate "2024.04.02"]
[EventType "swiss"]
[EventCountry "ESP"]
[SourceTitle "playchess.com"]
[Source "ChessBase"]
[SourceQuality "1"]
[TimeControl "5400+30"]

1. e4 {[%emt 0:01:36]} d5 {[%emt 0:00:13]} 2. exd5 {[%emt 0:01:19]} Qxd5 {[%emt 0:00:09]} 3. Nc3 {[%emt 0:00:54]} Qa5 {[%emt 0:00:13]} 4. Bc4 {[%emt 0:00:32]} Nf6 {[%emt 0:01:50]} 5. d3 {[%emt 0:00:24]} Bg4 {[%emt 0:02:45]} 6. f3 {[%emt 0:00:10]} Bd7 {[%emt 0:07:26]} 7. Bd2 {[%emt 0:17:39]} Qb6 {[%emt 0:02:32]} 8. g4 {[%emt 0:01:11]} h6 {[%emt 0:07:04]} 9. Qe2 {[%emt 0:08:32]} e6 {[%emt 0:03:02]} 10. O-O-O {[%emt 0:08:02]} Na6 {[%emt 0:01:39]} 11. f4 {[%emt 0:09:02]} O-O-O {[%emt 0:06:19]} 12. h3 {[%emt 0:00:55]} Bc6 {[%emt 0:06:30]} 13. Nf3 {[%emt 0:00:40]} Nb4 {[%emt 0:03:50]} 14. Rhe1 {[%emt 0:01:40]} Bxf3 {[%emt 0:05:29]} 15. Qxf3 {[%emt 0:00:03]} Nfd5 {[%emt 0:01:35]} 16. f5 {[%emt 0:01:54]} Be7 {[%emt 0:09:53]} 17. fxe6 {[%emt 0:03:44]} fxe6 {[%emt 0:01:33]} 18. Qf7 {[%emt 0:05:10]} Rhf8 {[%emt 0:05:38]} 19. Qxe6+ {[%emt 0:01:01]} Qxe6 {[%emt 0:00:59]} 20. Rxe6 {[%emt 0:00:09]} Bg5 {[%emt 0:02:19]} 21. Bxg5 {[%emt 0:03:33]} hxg5 {[%emt 0:00:20]} 22. Nxd5 {[%emt 0:04:57]} Nxd5 {[%emt 0:00:10]} 23. Re5 {[%emt 0:00:43]} Nf4 {[%emt 0:01:21]} 24. Rxg5 {[%emt 0:00:34]} Nxh3 {[%emt 0:00:44]} 25. Be6+ {[%emt 0:00:18]} Kb8 {[%emt 0:00:12]} 26. Rxg7 {[%emt 0:00:15]} Rf2 {[%emt 0:02:43]} 27. Rh1 {[%emt 0:10:35]} Nf4 {[%emt 0:00:12]} 28. Bf5 {[%emt 0:02:20]} Ne2+ {[%emt 0:02:31]} 29. Kb1 {[%emt 0:01:47]} Ng3 {[%emt 0:00:30]} 30. Re1 {[%emt 0:01:03]} Nxf5 {[%emt 0:01:21]} 31. gxf5 {[%emt 0:00:02]} Rxf5 {[%emt 0:00:20]} 32. a4 {[%emt 0:00:33]} a5 {[%emt 0:00:37]} 33. Ree7 {[%emt 0:01:57]} Rc5 {[%emt 0:00:31]} 34. Rgf7 {[%emt 0:05:20]} b6 {[%emt 0:00:19]} 35. Re4 {[%emt 0:01:38]} Rh8 {[%emt 0:00:37]} 36. Rc4 {[%emt 0:08:18]} 1/2-1/2